bitfinex-derivatives/quotes_SOLF0:USTF0_20241217
["timestamp","ask_amount","ask_price","bid_price","bid_amount"]
[1734448294576,2.2611,221.09,221.06,2.44]
[1734448294971,2.2611,221.09,221.05,4.0006]
[1734448295173,2.44,221.17,221.05,4.0006]
[1734448295473,2.44,221.17,221.05,2.44]
[1734448295780,2.2613,221.08,221.02,2.9939]
[1734448295978,2.44,221.17,221.02,2.9939]
[1734448296177,18.84800184,221.15,221.03,2.44]
[1734448296478,2.2615,221.05,221.03,2.44]
[1734448296678,2.2615,221.05,221.01,2.44]
[1734448296982,2.2615,221.05,220.99,2.44]
[1734448297878,2.2615,221.05,220.95,1.4638]
[1734448298070,18.84800184,221.03,220.87,5.45256559]
[1734448298268,18.84800184,221.03,220.84,18.84800184]
[1734448298269,18.84800184,220.99,220.85,3.9038]
[1734448298477,2.44,221.01,220.85,3.9038]
[1734448298677,2.44,221.02,220.85,3.9038]
[1734448298879,2.44,221.02,220.9,2.44]
[1734448299376,18.84800184,220.99,220.85,1.4638]
[1734448299571,18.84800184,220.99,220.79,2.44]
[1734448299874,2.44,221.02,220.79,2.44]
[1734448299875,18.84800184,220.95,220.79,2.44]
[1734448300078,2.44,220.94,220.79,2.44]
[1734448300374,2.44,220.94,220.71,8.49726608]
[1734448300375,18.84800184,220.87,220.71,8.49726608]
[1734448300579,2.44,220.86,220.71,2.9643]
[1734448301172,2.44,220.86,220.67,1.4833]
[1734448301173,18.84800184,220.83,220.67,1.4833]
[1734448301380,18.84800184,220.83,220.67,3.9233]
[1734448301577,2.2648,220.73,220.67,3.9233]
[1734448301771,2.2648,220.73,220.66,5.50180006]
[1734448301976,2.2648,220.73,220.66,7.94180006]
[1734448302186,21.28800184,220.79,220.66,2.44]
[1734448302482,18.84800184,220.75,220.62,2.44]
[1734448302678,2.44,220.74,220.61,2.44]
[1734448303076,2.44,220.74,220.41,6.25985379]
[1734448303077,18.84800184,220.66,220.41,6.25985379]
[1734448303285,2.64,220.65,220.52,5.3712968]
[1734448303480,2.2666,220.56,220.48,2.64]
[1734448303777,18.84800184,220.57,220.37,1.5218]
[1734448303984,21.48800184,220.57,220.41,18.84800184]
[1734448304177,2.2668,220.54,220.42,2.268]
[1734448304377,31.07430475,220.56,220.39,2.84]
[1734448304675,31.07430475,220.56,220.37,35.70610475]
[1734448304676,2.2674,220.48,220.37,2.2685]
[1734448305074,2.84,220.52,220.32,33.91430475]
[1734448305382,2.2677,220.46,220.37,5.37528637]
[1734448305578,33.91430475,220.51,220.37,5.37528637]
[1734448305579,2.84,220.5,220.37,5.37528637]
[1734448305778,2.268,220.43,220.3,5.1092]
[1734448306084,31.07430475,220.51,220.31,2.84]
[1734448306275,5.44390009,220.49,220.34,31.07430475]
[1734448306483,2.84,220.54,220.34,31.07430475]
[1734448306679,31.07430475,220.55,220.31,2.84]
[1734448306878,31.07430475,220.47,220.31,2.84]
[1734448307079,31.07430475,220.43,220.18,27.47809468]
[1734448307279,31.07430475,220.35,220.19,3.1843]
[1734448307482,31.07430475,220.31,220.19,3.1843]
[1734448307676,33.91430475,220.31,220.19,3.1843]
[1734448307880,33.91430475,220.31,220.06,1.6177]
[1734448308080,2.2704,220.19,220.07,2.2715]
[1734448308381,2.84,220.26,220.2,0.59494]
[1734448308580,2.2699,220.24,220.2,0.59494]
[1734448308986,2.84,220.28,220.2,0.59494]
[1734448309282,2.27,220.23,220.2,0.59494]
[1734448309478,5.41777866,220.3,220.2,0.59494]
[1734448309686,1.4786,220.42,220.21,33.91430475]
[1734448309981,31.07430475,220.47,220.29,31.07430475]
[1734448310180,31.07430475,220.51,220.29,31.07430475]
[1734448310388,31.07430475,220.51,220.3,3.04]
[1734448310576,2.2677,220.46,220.34,2.2688]
[1734448310787,2.2677,220.46,220.35,3.04]
[1734448311082,2.2683,220.4,220.3,3.04]
[1734448311282,5.44211484,220.46,220.3,3.04]
[1734448311283,31.07430475,220.43,220.3,3.04]
[1734448311687,31.07430475,220.43,220.26,3.04]
[1734448312079,2.2684,220.38,220.26,3.04]
[1734448312280,31.07430475,220.43,220.26,3.04]
[1734448312484,5.44211484,220.46,220.26,3.04]
[1734448312686,5.44211484,220.46,220.33,2.2689]
[1734448312884,5.44211484,220.46,220.34,3.04]
[1734448313685,2.2677,220.45,220.34,3.04]
[1734448314285,5.44211484,220.46,220.34,3.04]
[1734448314485,31.07430475,220.51,220.34,3.04]
[1734448315090,34.11430475,220.51,220.34,3.04]
[1734448315287,5.40066319,220.48,220.34,3.04]
[1734448315489,31.07430475,220.47,220.31,3.04]
[1734448316090,31.07430475,220.43,220.31,3.04]
[1734448316491,2.2683,220.4,220.31,3.04]
[1734448316690,31.07430475,220.43,220.31,3.04]
[1734448316897,34.11430475,220.47,220.31,3.04]
[1734448317099,2.2677,220.45,220.32,2.269]
[1734448317292,5.40066319,220.48,220.31,3.04]
[1734448317597,31.07430475,220.55,220.36,31.07430475]
[1734448317797,31.07430475,220.55,220.37,7.6365]
[1734448318197,31.07430475,220.47,220.37,4.5965]
[1734448318396,31.07430475,220.47,220.37,3.0879]
[1734448318697,31.07430475,220.51,220.37,3.0879]
[1734448318890,5.56107255,220.52,220.38,3.04]
[1734448319494,31.07430475,220.56,220.38,3.04]
[1734448319795,5.51040839,220.53,220.39,31.07430475]
[1734448320198,2.2668,220.54,220.43,2.2678]
[1734448320495,31.07430475,220.77,220.47,31.07430475]
[1734448320496,31.07430475,220.64,220.47,31.07430475]
[1734448320692,31.07430475,220.64,220.48,3.04]
[1734448320894,2.2662,220.6,220.51,2.267]
[1734448321096,31.07430475,220.64,220.48,4.5307]
[1734448321494,2.267,220.52,220.49,3.04]
[1734448321796,31.07430475,220.6,220.49,3.04]
[1734448321997,2.2667,220.55,220.49,3.04]
[1734448322200,5.56570607,220.62,220.49,3.04]
[1734448322797,3.04,220.61,220.49,3.04]
[1734448322998,3.04,220.61,220.4,1.5916]
[1734448322999,31.07430475,220.57,220.45,3.04]
[1734448323298,31.07430475,220.53,220.4,4.6316]
[1734448323700,31.07430475,220.57,220.4,4.6316]
[1734448324003,3.04,220.6,220.29,31.07430475]
[1734448324004,31.07430475,220.49,220.29,31.07430475]
[1734448324304,31.07430475,220.45,220.31,3.04]
[1734448324600,32.55320475,220.48,220.31,3.04]
[1734448325192,2.2672,220.5,220.33,31.07430475]
[1734448325400,31.07430475,220.52,220.33,31.07430475]
[1734448325796,2.2673,220.49,220.4,2.2681]
[1734448326001,5.36379311,220.51,220.41,3.04]
[1734448326201,2.268,220.43,220.32,2.269]
[1734448326494,31.07430475,220.48,220.33,3.04]
[1734448326898,31.07430475,220.48,220.29,2.2693]
[1734448326899,31.07430475,220.44,220.29,2.2693]
[1734448327099,31.07430475,220.44,220.29,3.04]
[1734448327305,31.07430475,220.44,220.28,4.6316]
[1734448327800,31.07430475,220.4,220.28,3.04]
[1734448328307,31.07430475,220.4,220.25,3.071]
[1734448328597,31.07430475,220.36,220.25,3.071]
[1734448329099,1.6193,220.4,219.85,10.66108582]
[1734448329100,31.07430475,220.32,220.2,3.04]
[1734448329598,31.07430475,220.32,220.16,3.04]
[1734448329805,2.2699,220.24,220.16,8.61989963]
[1734448330305,2.2695,220.28,220.19,2.2703]
[1734448330599,2.2695,220.28,220.16,8.61989963]
[1734448330600,31.07430475,220.32,220.16,8.61989963]
[1734448330802,2.2692,220.31,220.21,2.2702]
[1734448330997,8.73164111,220.39,220.22,3.24]
[1734448331195,5.49164111,220.39,220.25,31.07430475]
[1734448331397,5.49164111,220.39,220.3,0.54345]
[1734448331998,0.6947,220.5,220.3,0.54345]
[1734448332198,5.36379311,220.51,220.33,31.07430475]
[1734448332905,2.2675,220.47,220.38,2.2684]
[1734448333204,5.36379311,220.51,220.38,3.24]
[1734448333606,2.2677,220.45,220.38,3.24]
[1734448333801,1.5181,220.55,220.38,3.24]
[1734448334010,31.07430475,220.56,220.38,3.24]
[1734448334204,51.9,220.71,220.44,2.2678]
[1734448334205,2.2669,220.53,220.44,2.2678]
[1734448334405,34.31430475,220.6,220.45,3.24]
[1734448334603,5.3430982,220.55,220.45,3.24]
[1734448334807,2.2672,220.5,220.45,3.24]
[1734448335105,5.3430982,220.55,220.45,3.24]
[1734448335505,31.07430475,220.6,220.45,3.24]
[1734448336007,2.2671,220.51,220.45,3.24]
[1734448336211,31.07430475,220.6,220.45,3.24]
[1734448336610,2.2673,220.49,220.45,3.24]
[1734448337206,2.2675,220.47,220.45,3.24]
[1734448337403,3.24,220.55,220.4,3.24]
[1734448337809,2.268,220.42,220.4,3.24]
[1734448338109,31.07430475,220.52,220.34,5.54950267]
[1734448338312,31.07430475,220.52,220.36,3.24]
[1734448338506,2.2681,220.42,220.36,3.24]
[1734448338816,3.24,220.54,220.36,34.31430475]
[1734448339112,3.24,220.54,220.38,2.2684]
[1734448339315,3.24,220.55,220.36,34.31430475]
[1734448339606,2.268,220.43,220.36,34.31430475]
[1734448339812,3.24,220.55,220.36,34.31430475]
[1734448340010,31.07430475,220.52,220.36,3.24]
[1734448340214,31.07430475,220.52,220.34,5.54950267]
[1734448340402,31.07430475,220.52,220.32,3.24]
[1734448340603,34.31430475,220.55,220.32,3.24]
[1734448340807,31.07430475,220.5,220.32,3.24]
[1734448341007,4.7387,220.49,220.32,3.24]
[1734448341905,31.07430475,220.55,220.34,31.07430475]
[1734448342108,31.07430475,220.55,220.38,31.07430475]
[1734448342312,2.2674,220.48,220.41,2.2681]
[1734448342617,5.51642052,220.57,220.42,31.07430475]
[1734448343311,5.51642052,220.57,220.46,31.07430475]
[1734448343508,34.31430475,220.71,220.5,31.07430475]
[1734448343716,35.88700475,220.71,220.51,1.5663]
[1734448343912,5.49929118,220.65,220.54,31.07430475]
[1734448344121,5.49929118,220.65,220.55,3.24]
[1734448344417,35.88700475,220.71,220.55,3.24]
[1734448344418,32.64700475,220.71,220.55,3.24]
[1734448344713,1.5727,220.71,220.55,3.24]
[1734448344915,5.52270401,220.7,220.56,3.1142]
[1734448345413,42.34816274,220.72,220.58,31.07430475]
[1734448345616,4.8954,220.83,220.6,2.2661]
[1734448345617,5.38712742,220.73,220.6,2.2661]
[1734448345815,5.38712742,220.73,220.61,3.24]
[1734448346211,2.2661,220.61,220.59,3.24]
[1734448346416,5.38712742,220.73,220.58,3.24]
[1734448346615,5.38712742,220.73,220.56,3.1142]
[1734448346821,5.38712742,220.73,220.58,3.24]
[1734448347120,5.38712742,220.73,220.59,3.24]
[1734448347923,3.24,220.72,220.56,3.1142]
[1734448348118,1.5108,220.71,220.56,6.3542]
[1734448348311,2.2655,220.67,220.56,6.3542]
[1734448348518,1.5108,220.71,220.56,6.3542]
[1734448348719,1.5108,220.71,220.55,3.24]
[1734448348920,2.2655,220.67,220.55,3.24]
[1734448349215,1.5108,220.71,220.54,31.07430475]
[1734448349418,31.07430475,220.64,220.48,3.0947]
[1734448349611,34.31430475,220.64,220.48,3.0947]
[1734448350018,31.07430475,220.6,220.42,5.36764817]
[1734448350224,1.4686,220.59,220.41,3.24]
[1734448350422,31.07430475,220.56,220.41,3.24]
[1734448350716,1.4686,220.59,220.42,31.07430475]
[1734448351317,5.38778842,220.55,220.41,3.24]
[1734448351914,2.2676,220.46,220.41,3.24]
[1734448352114,5.38778842,220.55,220.41,3.24]
[1734448352532,3.24,220.54,220.34,3.0947]
[1734448352734,31.07430475,220.52,220.35,3.24]
[1734448353029,2.2683,220.4,220.35,3.24]
[1734448353231,31.07430475,220.52,220.35,3.24]
[1734448353622,2.2686,220.37,220.35,3.24]
[1734448354229,2.2686,220.37,220.32,36.57935505]
[1734448354230,2.2688,220.34,220.33,3.24]
[1734448354430,34.31430475,220.48,220.33,3.24]
[1734448354431,1.5337,220.47,220.33,3.24]
[1734448354928,2.2688,220.35,220.33,3.24]
[1734448355128,9.30537292,220.47,220.28,31.07430475]
[1734448355324,5.49579079,220.43,220.29,3.24]
[1734448355926,2.2683,220.39,220.32,2.269]
[1734448356131,5.49579079,220.43,220.32,31.07430475]
[1734448356331,5.49579079,220.43,220.24,34.24190475]
[1734448356526,2.2691,220.31,220.24,34.24190475]
[1734448356924,3.24,220.4,220.3,0.17495]
[1734448357133,2.2691,220.32,220.3,0.17495]
[1734448358034,5.49579079,220.43,220.3,0.17495]
[1734448358532,2.268,220.42,220.32,31.07430475]
[1734448358736,2.268,220.42,220.33,3.24]
[1734448358933,1.5337,220.47,220.33,5.5089]
[1734448359132,2.268,220.42,220.33,3.24]
[1734448359630,2.2684,220.39,220.33,3.24]
[1734448359838,1.5337,220.47,220.33,3.24]
[1734448360333,3.3,220.46,220.33,3.24]
[1734448360736,1.5337,220.47,220.33,3.24]
[1734448361640,1.5337,220.47,220.35,2.2687]
[1734448361833,1.5337,220.47,220.33,3.24]
[1734448362138,13.63,220.69,220.36,31.07430475]
[1734448362339,5.38778842,220.55,220.4,31.07430475]
[1734448362537,5.38778842,220.55,220.41,3.3]
[1734448362739,5.38778842,220.55,220.41,7.1129]
[1734448362740,2.2671,220.51,220.41,7.1129]
[1734448362935,5.38778842,220.55,220.41,4.8448]
[1734448363136,36.46209317,220.55,220.41,4.8448]
[1734448363640,5.38778842,220.55,220.41,32.61910475]
[1734448363838,2.2673,220.49,220.42,5.568]
[1734448364140,5.38778842,220.55,220.42,3.3]
[1734448364337,2.2677,220.46,220.42,3.3]
[1734448364842,36.46209317,220.55,220.42,3.3]
[1734448365036,3.3,220.54,220.37,1.5366]
[1734448365236,3.3,220.54,220.33,31.07430475]
[1734448365237,31.07430475,220.51,220.33,31.07430475]
[1734448365441,2.2676,220.47,220.35,3.3]
[1734448365642,31.07430475,220.51,220.35,3.3]
[1734448366141,31.07430475,220.43,220.26,3.3]
[1734448366340,4.915,220.42,220.26,3.3]
[1734448367046,31.07430475,220.39,220.26,3.3]
[1734448367439,31.07430475,220.39,220.24,0.57656]
[1734448367636,2.2695,220.28,220.24,0.57656]
[1734448367847,3.3,220.38,220.24,0.57656]
[1734448368044,1.615,220.42,220.24,31.65086475]
[1734448368444,34.37430475,220.48,220.28,31.07430475]
[1734448368638,34.37430475,220.48,220.29,3.3]
[1734448369542,34.37430475,220.48,220.32,2.2689]
[1734448369543,2.2683,220.39,220.32,2.2689]
[1734448369747,34.37430475,220.48,220.29,3.3]
[1734448369947,5.32439803,220.45,220.32,31.07430475]
[1734448370143,5.32439803,220.45,220.33,2.2689]
[1734448370340,5.32439803,220.45,220.32,31.07430475]
[1734448370540,2.2686,220.37,220.32,31.07430475]
[1734448370854,5.32439803,220.45,220.32,31.07430475]
[1734448371149,1.6129,220.49,220.32,31.07430475]
[1734448371349,5.40611071,220.47,220.32,31.07430475]
[1734448371549,3.3,220.47,220.24,0.57656]
[1734448371844,1.557,220.46,220.28,31.07430475]
[1734448372051,36.501116,220.48,220.28,31.07430475]
[1734448372249,5.42681125,220.48,220.32,31.07430475]
[1734448372445,5.42681125,220.48,220.33,3.3]
[1734448372642,2.2684,220.38,220.33,5.5689]
[1734448373051,3.3,220.46,220.33,3.3]
[1734448373448,2.2686,220.36,220.33,3.3]
[1734448374146,2.2685,220.38,220.33,3.3]
[1734448374651,2.2686,220.36,220.33,3.3]
[1734448374852,3.3,220.47,220.33,3.3]
[1734448375047,31.07430475,220.45,220.25,1.5315]
[1734448375254,31.07430475,220.41,220.26,3.3]
[1734448375450,3.3,220.4,220.26,3.3]
[1734448376052,2.2692,220.3,220.26,3.3]
[1734448376251,2.2692,220.3,220.25,1.5315]
[1734448376447,3.3,220.4,220.25,4.8315]
[1734448376653,4.8996,220.4,220.25,1.5315]
[1734448376848,0.68544594,220.39,220.25,1.5315]
[1734448377053,2.2696,220.27,220.25,1.5315]
[1734448377252,4.8996,220.4,220.24,0.57656]
[1734448377453,31.07430475,220.37,220.24,0.57656]
[1734448377650,0.68509734,220.36,220.24,0.57656]
[1734448379152,1.5996,220.4,220.25,3.3]
[1734448379357,4.8996,220.4,220.25,3.3]
[1734448379653,31.07430475,220.28,220.07,6.15508582]
[1734448379962,31.07430475,220.18,220.04,5.41311543]
[1734448380254,31.07430475,220.22,220.05,1.6182]
[1734448380455,31.07430475,220.22,220.06,31.07430475]
[1734448380656,5.50360659,220.25,220.06,31.07430475]
[1734448380854,5.50360659,220.25,220.1,31.07430475]
[1734448381051,31.07430475,220.3,220.11,1.5782]
[1734448381250,3.3,220.37,220.11,1.5782]
[1734448381251,31.07430475,220.26,220.11,1.5782]
[1734448381456,31.07430475,220.22,220.11,1.5782]
[1734448381858,31.07430475,220.27,220.11,1.5782]
[1734448382061,2.2704,220.19,220.11,1.5782]
[1734448382653,2.2705,220.18,220.11,1.5782]
[1734448383266,31.07430475,220.23,220.11,1.5782]
[1734448383460,31.07430475,220.23,220.11,3.5]
[1734448383655,31.07430475,220.19,220.04,6.99131543]
[1734448383858,31.07430475,220.23,220.05,3.5]
[1734448384263,31.07430475,220.23,220.06,3.5]
[1734448384566,0.68426399,220.22,220.06,3.5]
[1734448384763,2.2705,220.18,220.06,5.7716]
[1734448384960,31.07430475,220.23,220.06,3.5]
[1734448385264,4.7155,220.27,220.06,3.5]
[1734448385558,31.07430475,220.25,220.07,1.5895]
[1734448385758,1.2155,220.27,220.07,32.66380475]
[1734448386160,1.2155,220.27,220.08,3.5]
[1734448386361,2.2704,220.19,220.12,2.2711]
[1734448386667,31.07430475,220.2,220.07,1.5895]
[1734448386864,31.07430475,220.2,220.11,3.5]
[1734448387658,31.07430475,220.2,220.07,1.5895]
[1734448387964,31.07430475,220.16,220.07,1.5895]
[1734448388163,31.07430475,220.16,220.04,1.5782]
[1734448388359,31.07430475,220.16,220.03,3.5]
[1734448388562,2.2718,220.05,219.99,57.39568641]
[1734448388761,31.07430475,220.12,219.99,5.45568641]
[1734448388966,3.5,220.14,219.99,5.45568641]
[1734448388967,31.07430475,220.08,219.99,5.45568641]
[1734448389264,31.07430475,220.08,219.95,3.5]
[1734448389469,31.07430475,220.08,219.9,4.6192]
[1734448389666,31.07430475,220.08,219.91,3.5]
[1734448390068,31.07430475,220.12,219.91,3.5]
[1734448390268,31.07430475,220.12,220.0,2.2723]
[1734448390466,31.07430475,220.12,219.96,31.07430475]
[1734448390467,31.07430475,220.12,220.01,3.5]
[1734448390666,2.2714,220.09,220.01,3.5]
[1734448390867,36.57145437,220.12,220.01,3.5]
[1734448391264,5.49714962,220.12,220.01,3.5]
[1734448392977,36.57145437,220.12,219.95,3.5]
[1734448393170,31.07430475,220.08,219.95,3.5]
[1734448393371,2.2722,220.02,219.95,2.2728]
[1734448393568,31.07430475,220.08,219.95,2.2728]
[1734448393974,31.07430475,220.08,219.93,11.28324327]
[1734448394174,34.57430475,220.08,219.93,11.28324327]
[1734448394468,34.57430475,220.08,219.93,9.01024327]
[1734448394668,5.49714962,220.12,219.93,9.01024327]
[1734448394669,2.2721,220.02,219.93,9.01024327]
[1734448394972,36.57145437,220.12,219.93,9.01024327]
[1734448395171,36.57145437,220.12,219.93,5.51024327]
[1734448395374,36.57145437,220.12,219.93,9.01024327]
[1734448395573,36.57145437,220.12,219.94,2.273]
[1734448395574,2.2723,220.01,219.94,2.273]
[1734448395778,36.57145437,220.12,219.93,9.01024327]
[1734448396577,36.57145437,220.12,219.95,2.2728]
[1734448396578,2.2721,220.03,219.95,2.2728]
[1734448396774,36.57145437,220.12,219.95,31.07430475]
[1734448397179,36.57145437,220.12,219.75,193.15508582]
[1734448397180,31.07430475,220.04,219.75,187.0]
[1734448397382,31.07430475,220.0,219.82,3.1201]
[1734448397582,3.5,219.99,219.85,5.32353597]
[1734448398484,31.07430475,219.96,219.83,1.5626]
[1734448399388,3.5,219.95,219.77,39.97972084]
[1734448399577,31.07430475,219.96,219.78,3.1394]
[1734448399785,31.07430475,220.0,219.81,31.07430475]
[1734448399982,5.40923733,219.97,219.82,1.4744]
[1734448400183,2.2729,219.95,219.88,2.2735]
[1734448400385,5.40923733,219.97,219.88,2.2735]
[1734448400882,2.2732,219.92,219.82,1.4744]
[1734448401083,5.40923733,219.97,219.85,3.5]
[1734448402178,31.07430475,220.0,219.85,3.5]
[1734448402376,31.07430475,220.04,219.85,34.57430475]
[1734448402578,4.5415,220.16,219.9,31.07430475]
[1734448402579,2.2723,220.01,219.9,31.07430475]
[1734448402782,5.58828969,220.04,219.91,3.082]
[1734448402980,5.58828969,220.04,219.92,3.5]
[1734448403480,36.66259444,220.04,219.92,3.5]
[1734448403684,2.2723,220.01,219.92,3.5]
[1734448403987,36.66259444,220.04,219.92,3.5]
[1734448405879,36.66259444,220.04,219.86,3.5]
[1734448405880,31.07430475,220.0,219.86,3.5]
[1734448406085,34.57430475,220.0,219.86,3.5]
[1734448406279,34.57430475,220.0,219.84,1.539]
[1734448406885,2.2733,219.92,219.84,1.539]
[1734448407281,31.07430475,219.96,219.84,1.539]
[1734448407793,34.57430475,220.0,219.84,1.539]
[1734448407984,2.2729,219.95,219.88,2.2736]
[1734448408184,31.07430475,220.0,219.84,1.539]
[1734448408578,2.2731,219.93,219.87,2.2737]
[1734448408783,31.07430475,220.0,219.84,1.539]
[1734448408985,5.58828969,220.04,219.84,1.539]
[1734448408986,5.58828969,220.04,219.88,31.07430475]
[1734448409190,31.07430475,220.09,219.89,3.5]
[1734448409386,31.07430475,220.05,219.89,3.5]
[1734448409893,5.50581524,220.06,219.89,3.5]
[1734448410191,5.50581524,220.06,219.96,2.2727]
[1734448410192,2.2722,220.01,219.96,2.2727]
[1734448410685,5.50581524,220.06,219.95,3.5]
[1734448410887,31.07430475,220.05,219.88,3.5]
[1734448411292,2.273,219.96,219.9,2.2736]
[1734448411587,31.07430475,220.05,219.88,3.5]
[1734448411793,32.28940475,220.05,219.88,3.5]
[1734448412389,2.273,219.96,219.9,2.2736]
[1734448413096,32.28940475,220.05,219.9,2.2736]
[1734448413097,31.07430475,220.01,219.9,3.52]
[1734448413494,2.2733,219.93,219.9,3.52]
[1734448413687,31.07430475,220.01,219.9,3.52]
[1734448414896,3.52,220.03,219.9,3.52]
[1734448415097,2.2732,219.94,219.9,3.52]
[1734448415688,2.2736,219.9,219.84,1.539]
[1734448415889,2.2736,219.9,219.86,3.52]
[1734448416197,31.07430475,220.01,219.84,1.539]
[1734448416393,31.07430475,220.01,219.85,3.52]
[1734448416991,3.52,220.03,219.84,1.539]
[1734448416992,31.07430475,219.97,219.84,1.539]
[1734448417190,3.52,219.96,219.83,1.4898]
[1734448417393,31.07430475,219.93,219.8,3.52]
[1734448417595,2.2742,219.84,219.8,3.52]
[1734448417795,31.07430475,219.93,219.8,3.52]
[1734448418093,31.07430475,219.93,219.79,5.52447024]
[1734448418289,31.07430475,219.93,219.79,3.52]
[1734448418697,31.07430475,219.93,219.75,31.07430475]
[1734448418698,31.07430475,219.85,219.67,31.07430475]
[1734448418892,31.07430475,219.85,219.71,3.52]
[1734448419198,3.52,219.87,219.71,3.52]
[1734448419397,2.2748,219.79,219.71,5.7955]
[1734448419591,31.07430475,219.82,219.68,1.5047]
[1734448419793,31.07430475,219.78,219.68,1.5047]
[1734448419990,2.2751,219.75,219.68,1.5047]
[1734448420192,31.07430475,219.78,219.68,1.5047]
[1734448420392,31.07430475,219.78,219.64,2.2763]
[1734448420592,31.07430475,219.78,219.57,5.54257071]
[1734448420593,1.2138,219.77,219.57,5.54257071]
[1734448420798,1.2138,219.77,219.6,31.07430475]
[1734448421193,31.07430475,219.78,219.6,31.07430475]
[1734448421698,31.07430475,219.74,219.58,3.52]
[1734448421893,31.07430475,219.74,219.57,5.54257071]
[1734448422204,2.276,219.67,219.57,5.54257071]
[1734448422503,5.46811202,219.76,219.58,31.07430475]
[1734448422695,2.2757,219.7,219.63,2.2764]
[1734448422897,2.2757,219.7,219.58,31.07430475]
[1734448422898,5.46811202,219.76,219.64,3.52]
[1734448423395,5.46811202,219.76,219.62,3.52]
[1734448423792,31.07430475,219.74,219.62,3.52]
[1734448424198,31.07430475,219.74,219.56,1.5191]
[1734448424404,2.2766,219.61,219.56,1.5191]
[1734448424695,31.07430475,219.7,219.56,1.5191]
[1734448424898,2.2764,219.64,219.54,2.2773]
[1734448425093,31.07430475,219.7,219.52,5.0358]
[1734448425297,31.07430475,219.7,219.54,31.07430475]
[1734448425499,2.2761,219.66,219.58,2.2769]
[1734448425803,3.52,219.73,219.54,31.07430475]
[1734448426003,3.52,219.73,219.55,3.52]
[1734448426597,31.07430475,219.71,219.55,3.52]
[1734448427103,2.2762,219.66,219.55,3.52]
[1734448427302,31.07430475,219.71,219.55,3.52]
[1734448427696,31.07430475,219.71,219.54,31.07430475]
[1734448427896,31.07430475,219.71,219.55,3.52]
[1734448428405,2.2766,219.62,219.54,31.07430475]
[1734448428801,31.07430475,219.71,219.54,31.07430475]
[1734448429001,31.07430475,219.71,219.57,2.277]
[1734448429205,31.07430475,219.71,219.54,31.07430475]
[1734448429601,3.52,219.73,219.54,31.07430475]
[1734448429799,31.07430475,219.75,219.54,31.07430475]
[1734448429998,19.27205235,219.75,219.6,2.2767]
[1734448430202,19.27205235,219.75,219.59,3.52]
[1734448430602,19.27205235,219.75,219.6,2.2767]
[1734448430804,8.98811202,219.76,219.6,2.2767]
[1734448431004,19.27205235,219.74,219.6,2.2767]
[1734448431400,19.27205235,219.74,219.61,2.2766]
[1734448431606,19.27205235,219.74,219.59,3.52]
[1734448431803,8.98811202,219.76,219.6,19.27205235]
[1734448431804,5.46811202,219.76,219.6,19.27205235]
[1734448432009,5.46811202,219.76,219.64,2.2762]
[1734448432204,5.46811202,219.76,219.6,19.27205235]
[1734448432408,5.46811202,219.76,219.59,3.52]
[1734448432805,2.2758,219.7,219.63,2.2764]
[1734448433003,5.46811202,219.76,219.59,3.52]
[1734448433407,5.46811202,219.76,219.62,19.27205235]
[1734448433609,1.2145,219.81,219.63,2.9917]
[1734448434207,1.2145,219.81,219.64,1.4661]
[1734448434408,19.27205235,219.79,219.64,1.4661]
[1734448434603,2.2752,219.75,219.68,2.2758]
[1734448434807,19.27205235,219.79,219.68,3.52]
[1734448435004,24.86712119,219.79,219.64,1.4661]
[1734448435208,2.276,219.67,219.63,4.9872]
[1734448435609,19.27205235,219.75,219.63,4.9872]
[1734448435809,2.2758,219.69,219.63,5.7964]